bitfinex-derivatives/quotes_BNBF0:USTF0_20250413
["timestamp","ask_amount","ask_price","bid_price","bid_amount"]
[1744502745370,0.30801419,597.48,596.77,2.891]
[1744502745575,0.30801419,597.47,596.77,2.891]
[1744502745764,0.30801419,597.46,596.77,2.891]
[1744502745967,0.30801419,597.45,596.77,2.891]
[1744502746165,0.30801414,597.44,596.77,2.891]
[1744502746370,0.30801414,597.43,596.77,2.035]
[1744502746569,0.30801414,597.42,596.77,2.035]
[1744502746766,0.30801414,597.41,596.77,2.035]
[1744502746970,0.30801414,597.4,596.77,2.035]
[1744502747171,0.30801414,597.39,596.45,2.03]
[1744502747371,0.30801414,597.38,596.45,2.03]
[1744502747570,0.30801414,597.37,596.45,2.03]
[1744502747773,0.30801198,597.36,596.45,2.03]
[1744502748070,0.30801198,597.35,596.45,2.03]
[1744502748271,0.29155496,597.4,596.45,2.03]
[1744502748272,1.27119983,597.29,596.45,2.03]
[1744502748570,0.30801198,597.28,596.45,2.03]
[1744502749771,0.30801198,597.28,596.45,1.125]
[1744502750070,0.30801198,597.28,596.45,0.826]
[1744502750274,0.29162948,597.27,596.45,0.826]
[1744502750471,0.30801198,597.26,596.45,0.826]
[1744502752172,0.30801198,597.28,596.45,0.826]
[1744502752468,0.30801198,597.27,596.45,0.826]
[1744502752774,0.30801198,597.26,596.45,0.826]
[1744502752968,0.30801198,597.28,596.45,0.826]
[1744502753172,0.30801198,597.27,596.45,0.826]
[1744502753474,0.29162948,597.25,596.45,0.826]
[1744502753674,0.30801198,597.24,596.45,0.826]
[1744502754175,0.29162948,597.25,596.45,0.826]
[1744502754375,0.30801228,597.24,596.45,0.826]
[1744502755173,1.57921211,597.28,596.45,0.826]
[1744502755379,0.29163437,597.23,596.45,0.826]
[1744502755578,0.30801228,597.22,596.45,0.826]
[1744502757581,0.30801292,597.21,596.45,0.826]
[1744502757782,0.30801292,597.22,596.45,0.826]
[1744502758181,0.30801292,597.26,596.45,0.826]
[1744502758378,0.29163192,597.21,596.45,0.826]
[1744502758579,0.30801292,597.2,596.45,0.826]
[1744502759282,0.30801378,597.19,596.45,0.826]
[1744502759482,0.30801378,597.2,596.45,0.826]
[1744502759682,0.30801378,597.19,596.45,0.826]
[1744502759883,0.30801378,597.18,596.45,0.826]
[1744502760082,0.30801378,597.2,596.45,0.826]
[1744502760279,0.30801378,597.19,596.45,0.826]
[1744502760484,0.30801378,597.2,596.45,0.826]
[1744502760683,0.29163192,597.21,596.45,0.826]
[1744502760879,0.30801448,597.2,596.45,0.826]
[1744502761185,0.30801448,597.19,596.45,0.826]
[1744502761387,0.29163192,597.19,596.45,0.826]
[1744502761681,0.30801448,597.18,596.45,0.826]
[1744502764180,0.30801448,597.17,596.45,0.826]
[1744502764385,0.29166614,597.17,596.45,0.826]
[1744502764683,0.30801448,597.16,596.45,0.826]
[1744502766684,0.29166614,597.17,596.45,0.826]
[1744502766885,0.30806148,597.16,596.45,0.826]
[1744502767288,0.30806148,597.57,596.45,0.826]
[1744502767490,0.6427559,597.56,596.45,0.826]
[1744502767691,0.6427615,597.55,596.45,0.826]
[1744502767987,0.6427671,597.54,596.45,0.826]
[1744502768190,0.6427727,597.53,596.45,0.826]
[1744502768390,0.33471122,597.53,596.45,0.826]
[1744502768590,0.30808512,597.52,596.45,0.826]
[1744502768791,0.30808512,597.51,596.45,0.826]
[1744502768990,0.30808512,597.5,596.45,0.826]
[1744502769192,0.30808512,597.49,596.45,0.826]
[1744502769387,0.30808512,597.48,596.45,0.826]
[1744502769690,0.30808512,597.47,596.46,0.677]
[1744502769991,0.33471122,597.53,596.46,0.677]
[1744502770191,0.29163559,597.46,596.46,0.677]
[1744502770391,1.27119983,597.39,596.46,0.677]
[1744502770588,0.30808705,597.38,596.46,0.677]
[1744502770789,0.30808705,597.37,596.47,0.773]
[1744502770990,0.30808705,597.36,596.47,0.773]
[1744502771187,0.30808705,597.35,596.47,0.773]
[1744502771487,0.30808705,597.34,596.47,0.773]
[1744502771687,0.29165148,597.35,596.47,0.773]
[1744502771887,0.30808574,597.34,596.47,0.773]
[1744502772392,0.30808574,597.33,596.47,0.773]
[1744502772589,0.30808574,597.32,596.48,0.795]
[1744502772789,0.30808574,597.31,596.48,0.795]
[1744502773093,0.30808574,597.3,596.48,0.795]
[1744502773286,0.30808574,597.29,596.48,0.795]
[1744502773491,0.30808574,597.28,596.48,0.795]
[1744502773787,0.30808574,597.27,596.48,0.795]
[1744502773988,0.30808574,597.26,596.48,0.795]
[1744502774188,0.30808574,597.25,596.48,0.795]
[1744502774392,0.30808574,597.29,596.48,0.795]
[1744502774593,0.30808574,597.28,596.48,0.795]
[1744502774789,0.30808574,597.27,596.48,0.795]
[1744502774993,0.3080863,597.26,596.48,0.795]
[1744502775193,0.3080863,597.29,596.48,0.795]
[1744502775492,0.3080863,597.28,596.48,0.795]
[1744502775693,0.3080863,597.29,596.48,0.795]
[1744502775889,0.3080863,597.28,596.48,0.795]
[1744502776193,0.3080863,597.27,596.48,0.795]
[1744502776492,0.3080863,597.26,596.48,0.795]
[1744502776693,0.3080863,597.25,596.48,0.795]
[1744502776887,0.3080863,597.29,596.48,0.795]
[1744502777292,0.3080863,597.28,596.48,0.795]
[1744502777492,0.3080863,597.27,596.48,0.795]
[1744502777693,0.3080863,597.26,596.48,0.795]
[1744502777894,0.3080863,597.25,596.48,1.957]
[1744502778199,0.3080863,597.24,596.48,1.957]
[1744502778495,0.3080863,597.23,596.48,1.957]
[1744502778693,0.3080863,597.29,596.48,1.957]
[1744502778894,0.3080863,597.28,596.48,1.957]
[1744502779190,0.3080863,597.27,596.48,1.957]
[1744502779394,0.3080863,597.26,596.48,1.957]
[1744502779587,0.3080863,597.25,596.48,1.957]
[1744502779793,0.3080863,597.24,596.48,1.957]
[1744502779991,0.3080863,597.23,596.48,1.957]
[1744502780189,0.29167592,597.27,596.48,1.957]
[1744502780190,0.3080863,597.22,596.48,1.957]
[1744502780394,0.3080863,597.21,596.48,1.957]
[1744502780595,0.3080863,597.2,596.48,1.957]
[1744502780795,0.3080863,597.19,596.48,1.957]
[1744502780993,0.3080863,597.18,596.48,1.957]
[1744502781193,0.3080863,597.17,596.48,1.957]
[1744502781497,0.3080863,597.16,596.48,1.957]
[1744502781694,0.3080863,597.26,596.48,1.957]
[1744502781894,0.3080863,597.25,596.48,1.957]
[1744502782194,0.3080863,597.24,596.48,1.957]
[1744502782394,0.3080863,597.23,596.48,1.957]
[1744502782591,0.3080863,597.22,596.48,1.957]
[1744502782795,0.3080863,597.21,596.48,1.957]
[1744502782994,0.3080863,597.2,596.48,1.957]
[1744502783190,1.27119983,597.3,596.48,1.957]
[1744502783394,0.29168081,597.2,596.48,1.957]
[1744502783697,0.30810278,597.19,596.48,1.957]
[1744502783889,0.30810278,597.18,596.48,1.957]
[1744502784094,0.30810278,597.17,596.48,1.957]
[1744502784396,0.30810278,597.16,596.48,1.957]
[1744502784691,0.30810278,597.15,596.48,1.957]
[1744502784896,0.30810278,597.32,596.48,1.957]
[1744502785097,0.30810278,597.31,596.48,1.957]
[1744502785396,0.29167714,597.14,596.48,1.957]
[1744502785696,0.30810278,597.13,596.48,1.957]
[1744502785897,0.30810278,597.32,596.48,1.957]
[1744502786196,0.30810278,597.31,596.48,1.957]
[1744502786398,0.29166248,597.31,596.48,1.957]
[1744502786597,0.30808496,597.3,596.48,1.957]
[1744502786799,1.27119983,597.27,596.48,1.957]
[1744502786995,0.30808496,597.26,596.48,1.957]
[1744502787699,0.30808496,597.26,596.48,1.162]
[1744502789203,0.29163315,597.25,596.48,1.162]
[1744502789400,0.30808496,597.24,596.48,1.162]
[1744502789903,0.30808496,597.24,596.47,0.773]
[1744502790207,0.29163315,597.25,596.48,0.33530042]
[1744502791004,1.27119983,597.8,596.48,0.33530042]
[1744502791204,0.30798924,597.52,596.48,0.33530042]
[1744502792305,0.29159771,597.51,596.48,0.33530042]
[1744502792502,0.30798924,597.5,596.48,0.33530042]
[1744502792905,0.30798924,597.5,596.49,0.969]
[1744502793105,0.30798924,597.5,596.49,1.3042948]
[1744502793306,0.30799698,597.49,596.49,1.3042948]
[1744502793507,0.30799698,597.48,596.49,1.3042948]
[1744502793707,0.30799698,597.5,596.49,1.3042948]
[1744502793904,0.30799698,597.49,596.49,1.3042948]
[1744502794108,0.30799698,597.5,596.49,1.3042948]
[1744502794305,0.30799698,597.49,596.49,1.3042948]
[1744502794503,0.30799698,597.52,596.49,1.3042948]
[1744502794704,0.30799698,597.51,596.49,1.3042948]
[1744502795010,0.30799698,597.52,596.49,1.3042948]
[1744502795203,0.29157328,597.5,596.49,1.3042948]
[1744502795410,0.30799698,597.49,596.49,1.3042948]
[1744502798112,0.30799698,597.49,596.5,0.656]
[1744502798309,0.30799626,597.48,596.5,0.656]
[1744502798508,0.30799626,597.47,596.5,0.656]
[1744502798709,0.30799626,597.49,596.5,0.656]
[1744502799004,0.30799626,597.48,596.5,0.656]
[1744502799210,0.30799626,597.49,596.5,0.656]
[1744502799909,0.30799901,597.48,596.5,0.656]
[1744502800104,0.30799901,597.49,596.5,0.656]
[1744502800306,0.30799901,597.48,596.5,0.656]
[1744502800506,0.30799901,597.49,596.5,0.656]
[1744502801307,0.30799901,597.49,596.51,0.949]
[1744502803215,0.30799901,597.49,596.52,0.927]
[1744502806119,0.30799901,597.52,596.52,0.927]
[1744502806418,0.29156962,597.48,596.52,0.927]
[1744502806614,0.30799765,597.47,596.52,0.927]
[1744502807818,0.29156962,597.48,596.52,0.927]
[1744502808015,0.30796015,597.47,596.53,0.33527232]
[1744502809219,0.30796015,597.52,596.53,0.33527232]
[1744502809520,0.30796015,597.51,596.53,0.33527232]
[1744502809720,0.30796015,597.52,596.53,0.33527232]
[1744502809918,0.30796015,597.51,596.53,0.33527232]
[1744502810218,0.30796015,597.5,596.53,0.33527232]
[1744502810419,0.29155985,597.5,596.53,0.33527232]
[1744502810620,0.30796015,597.49,596.53,0.33527232]
[1744502811021,0.29155985,597.5,596.53,0.33527232]
[1744502811221,0.30796368,597.48,596.53,0.33527232]
[1744502811418,0.30796368,597.47,596.53,0.33527232]
[1744502811725,0.30796368,597.46,596.53,0.93227232]
[1744502811922,0.30796368,597.49,596.53,0.93227232]
[1744502812123,0.30796368,597.48,596.53,0.93227232]
[1744502812322,0.29156229,597.45,596.53,0.93227232]
[1744502812522,0.30796368,597.44,596.53,0.93227232]
[1744502815824,0.29156229,597.45,596.53,0.93227232]
[1744502816026,0.30796621,597.44,596.53,0.93227232]
[1744502818325,0.30796621,597.52,596.53,0.93227232]
[1744502818625,0.30796621,597.51,596.53,0.93227232]
[1744502818826,0.30796621,597.52,596.53,0.93227232]
[1744502819022,0.30796621,597.5,596.53,0.93227232]
[1744502819222,0.30796621,597.49,596.53,0.93227232]
[1744502819422,0.30796621,597.48,596.53,0.93227232]
[1744502819626,0.30796621,597.47,596.53,0.93227232]
[1744502819823,0.30796621,597.5,596.53,0.93227232]
[1744502821128,0.30796621,597.52,596.53,0.93227232]
[1744502821325,0.29156107,597.49,596.53,0.93227232]
[1744502821525,0.30796621,597.48,596.53,1.23127232]
[1744502824233,0.30796621,597.52,596.53,1.23127232]
[1744502824527,0.29155862,597.47,596.53,1.23127232]
[1744502824727,0.30796621,597.46,596.53,1.23127232]
[1744502825030,0.29155862,597.47,596.53,1.23127232]
[1744502825226,0.30795842,597.46,596.53,1.23127232]
[1744502826635,0.29155862,597.47,596.53,1.23127232]
[1744502826835,0.30789584,597.46,596.53,1.23127232]
[1744502828235,0.29155862,597.47,596.53,1.23127232]
[1744502828432,0.30789183,597.46,596.53,1.23127232]
[1744502830234,0.29154641,597.45,596.53,1.23127232]
[1744502830634,0.30789183,597.44,596.53,1.23127232]
[1744502832033,0.30789183,597.44,596.53,1.93627232]
[1744502832237,0.30789183,597.44,596.53,2.79827232]
[1744502833130,0.30789183,597.88,596.53,2.79827232]
[1744502833437,0.64241271,597.87,596.53,2.79827232]
[1744502833637,1.27119983,597.75,596.53,3.53127232]
[1744502833838,0.30789183,597.74,596.53,3.53127232]
[1744502834138,0.30789183,597.73,596.53,3.53127232]
[1744502834339,0.30789183,597.72,596.53,3.53127232]
[1744502834543,0.30789183,597.71,596.53,3.53127232]
[1744502834734,0.30790923,597.7,596.53,3.53127232]
[1744502834934,0.30790923,597.72,596.53,3.53127232]
[1744502836339,0.30790923,597.71,596.53,3.53127232]
[1744502836536,0.30790923,597.76,596.53,3.53127232]
[1744502836736,0.30790923,597.75,596.53,3.53127232]
[1744502837040,0.30790923,597.74,596.53,3.53127232]
[1744502837335,0.30790923,597.73,596.53,3.53127232]
[1744502838340,0.30790923,597.72,596.53,3.53127232]
[1744502838543,0.30790923,597.71,596.53,3.53127232]
[1744502838742,0.30790923,597.7,596.53,3.53127232]
[1744502838944,0.30790923,597.69,596.53,3.53127232]
[1744502839145,0.30790923,597.68,596.53,3.53127232]
[1744502839345,0.29152565,597.69,596.53,3.53127232]
[1744502839546,0.30790665,597.68,596.53,3.53127232]
[1744502842441,0.30790665,597.67,596.53,3.53127232]
[1744502842648,0.30790665,597.68,596.53,3.53127232]
[1744502845845,0.30790665,597.68,596.53,4.29627232]
[1744502847349,0.30790767,597.67,596.53,4.29627232]
[1744502847549,0.30790767,597.68,596.53,4.29627232]
[1744502847751,0.30790767,597.67,596.53,4.29627232]
[1744502847949,0.30790767,597.68,596.53,4.29627232]
[1744502848350,0.29153176,597.67,596.53,4.29627232]
[1744502848751,0.30790767,597.66,596.53,4.29627232]
[1744502849450,0.30790767,597.66,596.53,5.02027232]
[1744502850452,0.29153176,597.67,596.53,5.02027232]
[1744502850653,0.30788564,597.66,596.53,5.02027232]
[1744502851153,0.30788564,597.79,596.53,5.02027232]
[1744502851355,0.29149635,597.65,596.53,5.02027232]
[1744502851549,0.30788564,597.64,596.53,5.02027232]
[1744502852047,0.30788564,597.63,596.53,5.02027232]
[1744502852247,0.30788564,597.62,596.53,5.02027232]
[1744502852449,0.29149391,597.63,596.53,5.02027232]
[1744502852653,0.30788564,597.62,596.53,5.02027232]
[1744502854155,0.30788564,597.84,596.53,5.02027232]
[1744502854349,0.29149024,597.61,596.53,5.02027232]
[1744502854552,0.30788564,597.6,596.53,5.02027232]
[1744502854960,0.30788564,597.84,596.53,5.02027232]
[1744502855160,0.30788564,597.59,596.53,5.02027232]
[1744502855360,0.30787341,597.58,596.53,5.02027232]
[1744502855555,0.29149024,597.83,596.53,5.02027232]
[1744502855757,1.27119983,597.76,596.53,5.02027232]
[1744502855958,0.30787341,597.75,596.53,5.02027232]
[1744502856762,1.27119983,597.76,596.53,5.02027232]
[1744502857056,0.30787246,597.75,596.53,5.02027232]
[1744502857459,0.59937369,597.75,596.53,5.02027232]
[1744502857660,0.30787246,597.74,596.53,5.02027232]
[1744502858364,0.29150123,597.75,596.53,5.02027232]
[1744502858663,0.3078654,597.74,596.53,5.02027232]
[1744502860166,0.3078654,597.73,596.53,5.02027232]
[1744502860364,0.29149269,597.73,596.53,5.02027232]
[1744502860558,0.3078654,597.72,596.53,5.02027232]
[1744502863265,0.3078654,597.71,596.53,5.02027232]
[1744502863567,0.3078654,597.86,596.53,5.02027232]
[1744502863761,0.3078654,597.85,596.53,5.02027232]
[1744502864065,0.3078654,597.84,596.53,5.02027232]
[1744502864266,0.29146583,597.84,596.53,5.02027232]
[1744502864466,0.3078654,597.83,596.53,5.02027232]
[1744502866173,0.3078654,597.86,596.53,5.02027232]
[1744502866372,0.29146705,597.82,596.53,5.02027232]
[1744502866671,0.3078654,597.81,596.53,5.02027232]
[1744502867973,0.29146705,597.82,596.53,5.02027232]
[1744502868170,0.30780415,597.81,596.53,5.02027232]
[1744502869176,0.30780415,597.86,596.53,5.02027232]
[1744502869369,0.59926388,597.8,596.53,5.02027232]
[1744502869574,0.29145973,597.8,596.53,5.02027232]
[1744502869875,0.30780339,597.79,596.53,5.02027232]
[1744502871174,0.29145973,597.8,596.53,5.02027232]
[1744502871369,0.30779403,597.79,596.53,5.02027232]
[1744502872168,0.33452088,597.87,596.53,5.02027232]
[1744502872169,0.30779403,597.86,596.53,5.02027232]
[1744502872373,0.29145729,597.78,596.53,5.02027232]
[1744502872574,0.30779403,597.77,596.54,0.29364748]
[1744502872876,0.30779403,597.76,596.56,0.33525546]
[1744502873176,0.30779403,597.86,596.56,0.33525546]
[1744502873372,0.30779403,597.85,596.56,0.33525546]
[1744502873573,0.29144264,597.75,596.56,0.33525546]
[1744502873775,0.30779403,597.84,596.56,0.33525546]
[1744502873776,0.30779403,597.74,596.56,0.33525546]
[1744502874074,0.30779403,597.73,596.56,0.33525546]
[1744502874277,0.30779403,597.73,596.57,0.293626]
[1744502874468,0.30776918,597.72,596.58,0.29362495]
[1744502874671,0.30776918,597.73,596.57,0.29362495]
[1744502874874,0.30776918,597.72,596.58,0.29362495]
[1744502875171,0.30776918,597.73,596.59,0.29362495]
[1744502875371,0.2914463,597.71,596.61,0.33522736]
[1744502875570,0.30776918,597.7,596.62,0.29362495]
[1744502875778,0.30776918,597.7,596.64,0.33521051]
[1744502876478,0.30776918,597.7,596.65,0.967]
[1744502876677,0.30776918,597.7,596.67,0.33519365]
[1744502877678,0.2914463,597.71,596.67,0.33519365]
[1744502877871,0.30777779,597.69,596.67,0.33519365]
[1744502878074,0.30777779,597.68,596.67,0.33519365]
[1744502878276,0.29143898,597.68,596.67,0.33519365]
[1744502878479,0.30777779,597.67,596.67,0.33519365]
[1744502880779,0.29143898,597.68,596.67,0.33519365]
[1744502880980,0.30777932,597.67,596.67,0.33519365]
[1744502881178,0.30777932,597.66,596.67,0.33519365]
[1744502881378,0.29143166,597.66,596.67,0.33519365]
[1744502881574,0.30777932,597.65,596.67,0.33519365]
[1744502884181,0.30777932,597.86,596.67,0.33519365]
[1744502884381,0.29145729,597.64,596.67,0.33519365]
[1744502884580,0.30777932,597.63,596.67,0.33519365]
[1744502884780,0.30777932,597.86,596.67,0.33519365]
[1744502885283,0.29143166,597.85,596.67,0.33519365]
[1744502885781,0.30778275,597.84,596.67,0.33519365]
[1744502886185,0.30778275,597.84,596.67,1.06319365]
[1744502887283,0.30778275,597.83,596.67,1.06319365]
[1744502887583,0.30778275,597.82,596.67,1.06319365]
[1744502887880,0.33452088,597.87,596.67,1.06319365]
[1744502887881,0.30778275,597.81,596.67,1.06319365]
[1744502888080,0.30778275,597.8,596.67,1.93519365]
[1744502888384,0.30778275,597.79,596.67,1.93519365]
[1744502888585,0.30778187,597.78,596.67,1.93519365]
[1744502888785,0.30778187,597.79,596.67,1.93519365]
[1744502890289,0.30778187,597.86,596.67,1.93519365]
[1744502890588,0.29145485,597.78,596.67,1.93519365]
[1744502890887,0.30778187,597.77,596.67,1.93519365]
[1744502891086,0.30778187,597.86,596.67,1.93519365]
[1744502891283,0.30778187,597.85,596.67,1.93519365]
[1744502891483,0.30778187,597.86,596.67,1.93519365]
[1744502891683,0.30778187,597.85,596.67,1.93519365]
[1744502891886,0.30778187,597.84,596.67,1.93519365]
[1744502893292,0.29145851,597.83,596.67,1.93519365]
[1744502893687,0.30784477,597.82,596.67,1.93519365]
[1744502894789,0.30784477,597.82,596.67,2.88719365]
[1744502894990,0.30784226,597.81,596.67,2.88719365]
[1744502895190,0.30784226,597.8,596.67,2.88719365]
[1744502895391,0.30784226,597.82,596.67,2.88719365]
[1744502895592,0.30784226,597.81,596.67,2.88719365]
[1744502895794,0.30784226,597.82,596.67,2.88719365]
[1744502896190,0.30784226,597.86,596.67,2.88719365]
[1744502896390,0.30784226,597.85,596.67,2.88719365]
[1744502896588,0.30784226,597.84,596.67,2.88719365]
[1744502896891,0.30784226,597.83,596.67,3.18619365]
[1744502897091,0.30784226,597.82,596.67,3.18619365]
[1744502897293,0.29146583,597.82,596.67,3.18619365]
[1744502897493,0.30784226,597.81,596.67,3.18619365]
[1744502899394,0.29147193,597.8,596.67,3.18619365]
[1744502899596,0.30784226,597.79,596.67,3.91919365]
[1744502899791,0.30785891,597.78,596.67,3.91919365]
[1744502899989,0.30785891,597.79,596.67,3.91919365]
[1744502900193,0.30785891,597.78,596.67,3.91919365]
[1744502900493,0.29147193,597.8,596.67,3.91919365]
[1744502900494,0.30785891,597.77,596.67,3.91919365]
[1744502900693,0.30785891,597.79,596.67,3.91919365]
[1744502900891,0.30785891,597.78,596.67,3.91919365]
[1744502901095,0.30785891,597.79,596.67,3.91919365]
[1744502901296,0.29147193,597.8,596.67,3.91919365]
[1744502901693,0.30787413,597.79,596.67,3.91919365]
[1744502901891,0.30787413,597.78,596.67,3.91919365]
[1744502902093,0.30787413,597.79,596.67,3.91919365]
[1744502902296,0.30787413,597.77,596.67,3.91919365]
[1744502902497,0.30787413,597.76,596.67,4.68619365]
[1744502902796,0.30787413,597.76,596.67,5.60819365]
[1744502902992,0.29147437,597.77,596.67,5.60819365]
[1744502903194,0.30787994,597.76,596.67,5.60819365]
[1744502904496,0.29147437,597.77,596.67,5.60819365]
[1744502904692,0.30790634,597.76,596.67,5.60819365]
[1744502905192,0.30790634,597.86,596.67,5.60819365]
[1744502905398,0.29150245,597.75,596.67,5.60819365]
[1744502905697,0.30790634,597.74,596.67,5.60819365]
[1744502905896,0.30790634,597.84,596.67,5.60819365]
[1744502906098,0.30790634,597.73,596.67,5.60819365]
[1744502906295,0.30790634,597.72,596.67,5.60819365]
[1744502906494,0.30790634,597.82,596.67,5.60819365]
[1744502906695,0.30790634,597.81,596.67,5.60819365]
[1744502906898,0.30790634,597.82,596.67,5.60819365]
[1744502907092,0.30790634,597.81,596.67,5.60819365]
[1744502907295,0.30790634,597.8,596.67,5.60819365]
[1744502907497,0.30790634,597.79,596.67,5.60819365]
[1744502907698,0.29149269,597.83,596.67,5.60819365]
[1744502907994,0.30790556,597.82,596.67,5.60819365]
[1744502908197,0.30790556,597.81,596.67,5.60819365]
[1744502908398,0.30790556,597.8,596.67,5.60819365]
[1744502908594,0.30790556,597.79,596.67,5.60819365]
[1744502908800,0.30790556,597.78,596.67,5.60819365]
[1744502909100,0.30790556,597.77,596.67,5.60819365]
[1744502909400,0.30790561,597.76,596.67,5.60819365]
[1744502909599,0.30790561,597.82,596.67,5.60819365]
[1744502909899,0.30790561,597.81,596.67,5.60819365]
[1744502910100,0.30790561,597.8,596.67,5.60819365]
[1744502910300,0.30790561,597.79,596.67,5.60819365]
[1744502910598,0.30790561,597.78,596.67,5.60819365]
[1744502910798,0.30790561,597.77,596.67,5.60819365]
[1744502911100,0.30790345,597.76,596.67,5.60819365]
[1744502911294,0.30790345,597.75,596.67,5.60819365]
[1744502911496,0.30790345,597.74,596.67,5.60819365]
[1744502911700,0.30790345,597.73,596.67,5.60819365]
[1744502911899,0.30790345,597.72,596.67,5.60819365]
[1744502912099,0.30790345,597.71,596.67,5.60819365]
[1744502912299,0.30790345,597.7,596.67,5.60819365]
[1744502912499,0.30790345,597.69,596.67,5.60819365]
[1744502912699,0.30790345,597.68,596.67,5.60819365]
[1744502912901,0.30790345,597.67,596.67,5.60819365]
[1744502913102,0.30790345,597.75,596.67,5.60819365]
[1744502913302,0.30790345,597.74,596.67,5.60819365]
[1744502913505,0.29149513,597.76,596.67,5.60819365]
[1744502913506,0.30790345,597.75,596.67,5.60819365]
[1744502913805,0.30790345,597.74,596.67,5.60819365]
[1744502914104,0.30790345,597.73,596.67,5.60819365]
[1744502914299,0.30790345,597.72,596.67,5.60819365]
[1744502914502,0.30790345,597.84,596.67,5.60819365]
[1744502914702,0.30790345,597.83,596.67,5.60819365]
[1744502915004,0.30790345,597.82,596.67,5.60819365]
[1744502915198,0.30790345,597.84,596.67,5.60819365]
[1744502915503,0.29147071,597.82,596.67,5.60819365]
[1744502915903,0.30787908,597.81,596.67,5.60819365]
[1744502917302,0.59935345,597.8,596.67,5.60819365]
[1744502917502,0.30787908,597.79,596.67,5.60819365]
[1744502918804,0.29147437,597.8,596.67,5.60819365]
[1744502918999,0.30787431,597.79,596.67,5.60819365]
[1744502919804,0.30787431,597.78,596.67,5.60819365]
[1744502920001,0.30787431,597.77,596.67,5.60819365]
[1744502920199,0.30787431,597.76,596.67,5.60819365]
[1744502920403,0.30787431,597.75,596.67,5.60819365]
[1744502920604,0.30787431,597.74,596.67,5.60819365]
[1744502920903,0.30787431,597.73,596.67,5.60819365]
[1744502921106,0.30787431,597.72,596.67,5.60819365]
[1744502921306,0.30787431,597.71,596.67,5.60819365]
[1744502921507,0.30787431,597.7,596.67,5.60819365]
[1744502921806,0.30787431,597.69,596.67,5.60819365]
[1744502922007,0.30787431,597.76,596.67,5.60819365]
[1744502922207,0.30787431,597.75,596.67,5.60819365]
[1744502922507,0.30787431,597.74,596.67,5.60819365]
[1744502922708,0.30787431,597.73,596.67,5.60819365]
[1744502922905,0.30787431,597.72,596.67,5.60819365]
[1744502923110,0.30787431,597.71,596.67,5.60819365]
[1744502923313,0.30787431,597.7,596.67,5.60819365]
[1744502923507,0.30787431,597.69,596.67,5.60819365]
[1744502923812,0.30787431,597.7,596.67,5.60819365]
[1744502924012,0.30787431,597.69,596.67,5.60819365]
[1744502924213,0.30787431,597.7,596.67,5.60819365]
[1744502924413,0.30787431,597.69,596.67,5.60819365]
[1744502924614,0.30787431,597.7,596.67,5.60819365]
[1744502924816,0.30787431,597.69,596.67,5.60819365]
[1744502925013,0.30787431,597.68,596.67,5.60819365]
[1744502925214,0.30787431,597.7,596.67,5.60819365]
[1744502925409,0.30787431,597.69,596.67,5.60819365]
[1744502925611,0.30787431,597.68,596.67,5.60819365]
[1744502925810,0.30787431,597.67,596.67,5.60819365]
[1744502926012,0.30787431,597.66,596.67,5.60819365]
[1744502926215,0.30787431,597.65,596.67,5.60819365]
[1744502926416,0.30787431,597.64,596.67,5.60819365]
[1744502926712,0.30787431,597.63,596.67,5.60819365]
[1744502926921,1.27119983,597.81,596.67,5.60819365]
[1744502927114,0.30788554,597.62,596.67,5.60819365]
[1744502927318,0.30788554,597.61,596.67,5.60819365]
[1744502927813,0.30788554,597.6,596.67,5.60819365]
[1744502928117,0.30788554,597.69,596.67,5.60819365]
[1744502928421,0.30788554,597.68,596.67,5.60819365]
[1744502928718,0.30788554,597.67,596.67,5.60819365]
[1744502928918,0.30788554,597.66,596.67,5.60819365]
[1744502929118,1.57908537,597.65,596.67,5.60819365]
[1744502929314,0.30788554,597.64,596.67,5.60819365]
[1744502929519,0.30788554,597.63,596.67,5.60819365]
[1744502929720,0.30788554,597.62,596.67,5.60819365]
[1744502929919,0.30788554,597.61,596.67,5.60819365]
[1744502930114,0.30788554,597.6,596.67,5.60819365]
[1744502930315,0.30788554,597.59,596.67,5.60819365]
[1744502930521,0.30788554,597.58,596.67,5.60819365]
[1744502930816,1.56268885,597.65,596.67,5.60819365]
[1744502930817,0.30788554,597.57,596.67,5.60819365]
[1744502931020,0.30788554,597.56,596.67,5.60819365]
[1744502931222,0.30788554,597.59,596.67,5.60819365]
[1744502931420,0.30788554,597.58,596.67,5.60819365]
[1744502931621,0.30788554,597.57,596.67,5.60819365]
[1744502931921,0.30788554,597.56,596.67,5.60819365]
[1744502932121,0.30788554,597.59,596.67,5.60819365]
[1744502932317,0.30788554,597.55,596.67,5.60819365]
[1744502932514,0.30788554,597.54,596.67,5.60819365]